bitfinex/quotes_ETHUSD_20250430
["timestamp","ask_amount","ask_price","bid_price","bid_amount"]
[1746030245770,0.24976884,1761.4,1761.3,5.67762448]
[1746030246203,0.24976884,1761.4,1761.2,11.35565625]
[1746030246404,0.24976884,1761.4,1761.3,5.67762448]
[1746030248109,0.23510178,1761.4,1761.3,5.67740514]
[1746030248808,0.23889272,1761.4,1761.2,5.67775788]
[1746030248997,0.23889272,1761.3,1761.2,5.67771651]
[1746030249177,5.97957505,1761.6,1761.3,5.67745616]
[1746030249514,0.23889272,1761.5,1761.3,5.67745616]
[1746030249984,0.23889272,1761.5,1761.2,5.67771651]
[1746030249985,0.23889272,1761.5,1761.2,11.35553687]
[1746030250311,0.23889272,1761.5,1761.2,5.67771651]
[1746030250912,0.23889272,1761.5,1761.3,5.677503]
[1746030251073,0.23889272,1761.5,1761.3,5.67746331]
[1746030251274,0.23889272,1761.5,1761.3,5.67739573]
[1746030251496,0.23889272,1761.5,1761.4,5.67730214]
[1746030251680,0.23889272,1761.5,1761.4,11.28837319]
[1746030251893,6.09,1762.1,1761.8,5.67601316]
[1746030252201,0.24767121,1762.0,1761.8,5.67601316]
[1746030253389,0.24767121,1762.0,1761.9,5.67569101]
[1746030253909,0.24767121,1762.0,1761.8,5.67582382]
[1746030254113,6.89600309,1762.0,1761.6,5.67648465]
[1746030254281,0.24121134,1761.9,1761.6,5.67648465]
[1746030254483,0.24121134,1761.9,1761.8,5.67601316]
[1746030254685,3.8047,1762.1,1761.9,5.67569101]
[1746030255012,0.24575594,1762.0,1761.9,5.67569101]
[1746030255209,0.55889905,1762.0,1761.9,5.67569101]
[1746030258312,0.55889905,1762.0,1761.9,6.69401471]
[1746030258513,0.55889905,1762.0,1761.9,5.79303145]
[1746030258714,9.47893092,1762.6,1762.5,5.67375886]
[1746030258914,3.38893092,1762.6,1762.4,5.67385318]
[1746030259218,6.38893092,1762.6,1762.5,0.11652426]
[1746030259427,6.63812673,1762.6,1762.5,0.11652426]
[1746030259609,3.63812673,1762.6,1762.5,0.11652426]
[1746030259798,0.24919581,1762.6,1762.5,5.79028312]
[1746030260412,3.24919581,1762.6,1762.5,5.79028312]
[1746030260627,0.24919581,1762.6,1762.5,5.79028312]
[1746030260829,0.23728326,1762.6,1762.5,5.79028312]
[1746030261415,0.23728326,1762.6,1762.5,0.11652426]
[1746030261734,3.38893092,1762.6,1762.5,0.11652426]
[1746030261929,4.57107388,1762.6,1762.5,0.11652426]
[1746030262093,13.24452482,1762.6,1762.2,10.46757316]
[1746030262292,3.0,1762.3,1762.2,10.46749497]
[1746030262529,3.25085303,1762.3,1762.2,10.46749497]
[1746030265235,0.25085303,1762.3,1762.2,10.46749497]
[1746030265806,0.23977452,1762.3,1762.2,10.46749497]
[1746030266415,0.23977452,1762.3,1762.2,4.793]
[1746030266713,1.02152661,1762.4,1762.2,4.793]
[1746030267037,6.63665753,1762.3,1762.2,4.793]
[1746030267615,3.24772661,1762.3,1762.2,10.46772477]
[1746030268124,3.24772661,1762.3,1762.2,5.67472477]
[1746030268539,6.63665753,1762.3,1762.1,5.67504072]
[1746030268737,0.25084777,1762.2,1762.0,11.35033155]
[1746030268935,3.25084777,1762.2,1761.8,23.553]
[1746030269273,0.23379516,1762.1,1762.0,5.67536889]
[1746030269861,0.23379516,1762.1,1761.8,23.553]
[1746030269862,3.0,1762.0,1761.8,29.22882858]
[1746030270151,0.23498443,1761.9,1761.8,10.46782296]
[1746030271753,3.0,1762.2,1762.0,5.67507835]
[1746030271956,0.24930612,1762.1,1762.0,5.67507835]
[1746030273108,0.56314557,1762.1,1762.0,5.67507835]
[1746030273548,0.56314557,1762.1,1762.0,5.78632782]
[1746030273749,0.56314557,1762.1,1762.0,0.11124947]
[1746030275156,5.12629105,1762.1,1762.0,0.11124947]
[1746030275346,14.35133786,1762.1,1762.0,0.11124947]
[1746030275514,8.67555922,1762.0,1761.8,4.792]
[1746030275715,3.63935554,1761.9,1761.8,4.792]
[1746030275915,12.31504655,1761.9,1761.5,11.28665431]
[1746030276240,0.25002349,1761.8,1761.5,16.96341374]
[1746030276853,0.25002349,1761.8,1761.6,5.67664848]
[1746030277271,0.7691,1761.7,1761.6,5.67664848]
[1746030277445,4.40069388,1761.7,1761.5,4.79]
[1746030277635,0.24266296,1761.6,1761.5,10.46686477]
[1746030278222,0.24266296,1761.6,1761.5,11.27296477]
[1746030278651,0.24266296,1761.6,1761.5,10.46686477]
[1746030278836,0.23801427,1761.6,1761.5,10.46686477]
[1746030279134,0.23801427,1761.8,1761.5,10.46686477]
[1746030279353,0.23801427,1761.8,1761.5,10.46676176]
[1746030279678,1.46829227,1761.8,1761.6,5.67661008]
[1746030279868,0.23813777,1761.7,1761.6,5.67650047]
[1746030280068,0.23813777,1761.8,1761.6,5.67650047]
[1746030280264,0.55226693,1761.7,1761.6,5.67650047]
[1746030282494,0.23813777,1761.7,1761.6,5.67650047]
[1746030282655,0.23779337,1761.7,1761.6,5.67650047]
[1746030282852,0.31436789,1761.7,1761.6,5.67650047]
[1746030283186,0.31436789,1761.7,1761.5,10.46683443]
[1746030283187,0.55216126,1761.7,1761.5,10.46680012]
[1746030283393,0.23779337,1761.6,1761.5,10.46680012]
[1746030283792,0.55216126,1761.6,1761.5,10.46680012]
[1746030284793,0.23779337,1761.6,1761.5,10.52356454]
[1746030284966,7.17083092,1761.9,1761.6,11.35276125]
[1746030285290,0.23977926,1761.8,1761.6,5.67634805]
[1746030285592,0.23977926,1761.8,1761.7,5.67633535]
[1746030286072,0.55386781,1761.8,1761.7,5.67633535]
[1746030287505,0.55386781,1761.8,1761.6,6.46584805]
[1746030287695,0.24183533,1761.7,1761.6,6.46584805]
[1746030287919,0.55592388,1761.7,1761.6,6.46584805]
[1746030288090,0.55592388,1761.7,1761.6,5.67634805]
[1746030288494,0.55592388,1761.7,1761.6,5.7920552]
[1746030288929,0.24183533,1761.7,1761.6,5.7920552]
[1746030289222,0.23441961,1761.7,1761.6,5.7920552]
[1746030290131,0.54974261,1761.8,1761.6,5.7920552]
[1746030290302,0.23556339,1761.7,1761.6,5.7920552]
[1746030290894,3.0,1761.9,1761.8,5.67601316]
[1746030291110,3.24230282,1761.9,1761.8,5.67601316]
[1746030291628,3.55650045,1761.9,1761.8,5.79159465]
[1746030291825,3.55650045,1761.9,1761.8,0.11558149]
[1746030292400,9.23219146,1761.9,1761.8,0.11558149]
[1746030292623,3.55650045,1761.9,1761.7,5.67612693]
[1746030292929,0.24103018,1761.8,1761.7,5.67612693]
[1746030293307,0.55522781,1761.8,1761.7,5.67612693]
[1746030294756,0.55522781,1761.8,1761.6,5.6765102]
[1746030295047,0.23382689,1761.7,1761.6,5.6765102]
[1746030295545,0.54802452,1761.7,1761.6,5.6765102]
[1746030297358,0.54802452,1761.7,1761.5,16.89908065]
[1746030297645,0.24112437,1761.6,1761.5,11.22225873]
[1746030298353,0.555322,1761.6,1761.5,11.22225873]
[1746030300852,0.24112437,1761.6,1761.5,11.22225873]
[1746030301149,3.0,1762.0,1761.8,5.67601316]
[1746030301350,0.24135628,1761.9,1761.8,5.67601316]
[1746030301851,0.55648565,1761.9,1761.8,5.67601316]
[1746030302464,0.55648565,1761.9,1761.7,11.35229694]
[1746030302762,0.24911026,1761.8,1761.7,5.67610777]
[1746030302956,0.56423963,1761.8,1761.7,5.67610777]
[1746030303368,0.56423963,1761.8,1761.7,5.79112408]
[1746030306481,0.56423963,1761.8,1761.7,0.11501631]
[1746030306648,7.05285279,1761.8,1761.7,0.11501631]
[1746030306983,7.05285279,1761.8,1761.5,4.79]
[1746030306984,3.0,1761.4,1761.2,10.46683545]
[1746030307182,0.23865135,1761.3,1761.2,10.46683545]
[1746030307387,3.0,1761.5,1761.3,5.67762448]
[1746030307586,0.23865135,1761.4,1761.3,5.67753301]
[1746030307953,0.55378072,1761.4,1761.3,5.67753301]
[1746030308565,0.55378072,1761.4,1761.2,10.4667434]
[1746030308761,0.23585171,1761.3,1761.2,10.4667434]
[1746030309496,7.40598263,1761.3,1761.2,4.789]
[1746030309697,8.75293498,1761.3,1761.2,4.789]
[1746030309895,3.0,1761.1,1760.7,6.10680491]
[1746030310106,0.24212854,1761.0,1760.8,5.67906447]
[1746030310464,0.24212854,1761.0,1760.9,5.67891419]
[1746030311188,0.24212854,1761.0,1760.9,6.50161419]
[1746030312400,0.24212854,1761.0,1760.9,6.75401904]
[1746030312701,0.7608,1761.9,1761.7,5.67614904]
[1746030312888,4.56733107,1762.1,1761.8,5.67601316]
[1746030313088,0.6926941,1762.0,1761.7,5.67614904]
[1746030313273,0.23596099,1761.9,1761.7,5.67614904]
[1746030313480,0.55057178,1761.9,1761.7,5.67614904]
[1746030313676,0.23596099,1761.8,1761.7,5.67614904]
[1746030313877,0.23596099,1761.8,1761.7,5.7329082]
[1746030314176,0.23596099,1761.8,1761.7,5.67614904]
[1746030314366,0.23596099,1761.8,1761.7,5.73289686]
[1746030315103,0.7913,1762.3,1762.2,5.67472477]
[1746030315268,1.10601223,1762.3,1762.2,5.67472477]
[1746030315467,1.3566883,1762.3,1762.2,5.67472477]
[1746030315701,0.5653883,1762.3,1762.2,5.67472477]
[1746030316602,0.25067607,1762.3,1762.2,5.67472477]
[1746030316906,0.23829834,1762.3,1762.2,5.67455804]
[1746030319148,3.0,1762.5,1762.3,11.34880552]
[1746030319354,0.24583354,1762.4,1762.3,5.67440276]
[1746030319509,0.88447627,1762.4,1762.3,5.67440276]
[1746030321045,0.57041689,1762.4,1762.3,5.67440276]
[1746030321246,0.24583354,1762.4,1762.3,5.67440276]
[1746030321761,0.24583354,1762.4,1762.3,6.46270276]
[1746030322309,8.0,1762.6,1762.5,5.67375886]
[1746030322530,8.24178492,1762.6,1762.5,5.67375886]
[1746030324946,3.24178492,1762.6,1762.5,5.67375886]
[1746030325411,3.24178492,1762.6,1762.4,10.46208079]
[1746030325412,3.24178492,1762.6,1762.4,4.788]
[1746030325749,0.23406855,1762.5,1762.4,4.788]
[1746030326555,0.23406855,1762.5,1762.4,10.46208079]
[1746030326747,0.23406855,1762.5,1762.4,11.33901814]
[1746030326947,0.23406855,1762.5,1762.4,11.28228079]
[1746030327256,0.8065,1762.9,1762.7,11.3462302]
[1746030327560,0.24033433,1762.8,1762.7,5.6731151]
[1746030329351,0.24033433,1762.8,1762.6,5.67329724]
[1746030329553,0.99503433,1762.8,1762.6,5.6733772]
[1746030329749,0.24002882,1762.7,1762.5,5.67361217]
[1746030329931,3.24002882,1762.7,1762.5,5.67370066]
[1746030330133,3.25076398,1762.6,1762.4,4.788]
[1746030330325,0.25076398,1762.5,1762.4,4.788]
[1746030330641,0.25076398,1762.5,1762.4,10.46208079]
[1746030330837,0.25062462,1762.6,1762.4,10.46208079]
[1746030331436,0.25062462,1762.6,1762.4,10.46185525]
[1746030331665,0.25062462,1762.6,1762.4,16.13570476]
[1746030331833,0.25062462,1762.6,1762.4,10.46184951]
[1746030332274,0.25062462,1762.6,1762.4,4.788]
[1746030332488,0.7673,1762.5,1762.4,4.788]
[1746030332635,1.00099305,1762.5,1762.4,4.788]
[1746030333872,5.67499824,1762.2,1761.4,8.0]
[1746030334078,7.03676584,1761.6,1761.1,6.45220476]
[1746030334231,0.24214932,1761.5,1761.2,5.67772347]
[1746030334563,0.24214932,1761.5,1761.0,10.46441676]
[1746030334766,0.24214932,1761.5,1761.1,5.67814219]
[1746030334968,0.24214932,1761.5,1761.2,5.67794607]
[1746030335865,0.24214932,1761.5,1761.1,5.67807371]
[1746030336067,3.0,1761.4,1761.1,5.67807371]
[1746030336267,0.23813047,1761.3,1761.1,5.67807371]
[1746030336936,3.7537,1761.2,1760.8,5.67923568]
[1746030337135,0.25069979,1761.1,1760.9,10.46483428]
[1746030338272,0.25069979,1761.1,1760.9,4.786]
[1746030338965,0.25069979,1761.1,1760.9,10.46488553]
[1746030339359,0.25069979,1761.1,1761.0,5.6785917]
[1746030339554,0.25069979,1761.1,1760.9,4.786]
[1746030340069,0.25069979,1761.1,1760.9,10.46490863]
[1746030340976,0.25069979,1761.1,1760.9,4.786]
[1746030341177,0.25069979,1761.1,1760.9,10.46478376]
[1746030341883,0.25069979,1761.1,1760.9,10.46474557]
[1746030342045,0.25069979,1761.1,1761.0,0.10938576]
[1746030342590,0.25069979,1761.1,1761.0,5.84476079]
[1746030342876,0.25069979,1761.1,1761.0,6.58797746]
[1746030343372,0.24514675,1761.1,1761.0,6.58797746]
[1746030343579,11.76699611,1761.5,1761.1,5.67799555]
[1746030343776,3.23850695,1761.4,1761.1,5.67799555]
[1746030343987,0.23850695,1761.3,1761.2,0.11415572]
[1746030344293,0.23850695,1761.3,1761.1,5.67826553]
[1746030344465,0.23850695,1761.3,1761.2,5.78959832]
[1746030344642,0.24021768,1761.3,1761.2,5.78959832]
[1746030344978,0.24021768,1761.4,1761.2,0.11165147]
[1746030345176,0.24021768,1761.4,1761.0,5.67831163]
[1746030345177,3.0,1761.3,1761.0,5.67831163]
[1746030345344,1.04151768,1761.2,1761.0,5.67857653]
[1746030345546,0.24021768,1761.1,1760.9,10.46466976]
[1746030346700,0.24021768,1761.1,1760.9,10.46466258]
[1746030346859,0.24021768,1761.1,1761.0,5.6785917]
[1746030348275,0.24021768,1761.1,1760.9,4.786]
[1746030348585,0.24021768,1761.1,1761.0,0.11165147]
[1746030349271,3.24021768,1761.1,1761.0,0.11165147]
[1746030349475,8.91848694,1761.1,1761.0,0.11165147]
[1746030349674,11.06726095,1761.1,1761.0,0.11165147]
[1746030349871,5.38899169,1761.1,1761.0,0.11165147]
[1746030350449,3.24021768,1761.1,1761.0,0.11165147]
[1746030352862,0.24021768,1761.1,1761.0,0.11165147]
[1746030353687,0.24021768,1761.1,1761.0,5.79024317]
[1746030357172,0.24021768,1761.1,1761.0,0.11165147]
[1746030357387,1.05571768,1761.1,1761.0,0.11165147]
[1746030357602,1.05571768,1761.1,1761.0,5.79024317]
[1746030357776,1.05571768,1761.1,1761.0,0.11165147]
[1746030361211,1.36973254,1761.1,1761.0,0.11165147]
[1746030362176,1.36973254,1761.1,1761.0,5.79024317]
[1746030363229,1.36973254,1761.1,1761.0,0.11165147]
[1746030363589,4.87768944,1761.1,1760.9,4.786]
[1746030363895,0.56311705,1761.0,1760.9,4.786]
[1746030364095,0.56311705,1761.0,1760.9,10.46491419]
[1746030365016,0.56311705,1761.0,1760.9,4.786]
[1746030365625,0.56311705,1761.0,1760.9,10.46491419]
[1746030365779,0.56311705,1761.0,1760.9,11.48323789]
[1746030365985,0.56311705,1761.0,1760.9,10.46491419]
[1746030366928,4.38901705,1761.0,1760.8,10.46802329]
[1746030367086,0.55224046,1760.9,1760.8,10.46802329]
[1746030368327,0.55224046,1760.9,1760.8,4.789]
[1746030368631,6.6689687,1760.9,1760.8,4.789]
[1746030368784,0.99005451,1760.9,1760.8,4.789]
[1746030370213,9.6689687,1760.9,1760.8,4.789]
[1746030370615,10.4405687,1760.9,1760.8,4.789]
[1746030372920,8.67935549,1760.8,1760.5,4.79]
[1746030373219,0.23818639,1760.7,1760.5,10.47017074]
[1746030373825,0.23818639,1760.7,1760.6,0.10693065]
[1746030374719,5.91774565,1760.7,1760.6,0.10693065]
[1746030374919,7.06172214,1760.7,1760.6,0.10693065]
[1746030375116,3.0,1760.6,1760.5,4.79]
[1746030375317,3.55574723,1760.6,1760.5,4.79]
[1746030375620,4.56213788,1760.6,1760.5,4.79]
[1746030375922,1.56213788,1760.6,1760.5,4.79]
[1746030376090,0.55574723,1760.6,1760.5,4.79]
[1746030378914,6.23562908,1760.6,1760.5,4.79]
[1746030379320,15.87562908,1760.6,1760.5,4.79]
[1746030379629,3.0,1760.1,1759.9,19.5542]
[1746030379790,3.0,1759.9,1759.6,5.68282077]
[1746030379995,0.24043452,1759.8,1759.7,5.68274074]
[1746030380795,0.55581101,1759.8,1759.7,5.68274074]
[1746030381134,0.55581101,1759.8,1759.3,5.6839209]
[1746030381339,12.07945049,1759.6,1759.2,25.64604794]
[1746030381638,0.2390002,1759.5,1759.3,5.68405066]
[1746030381830,0.2390002,1759.5,1759.2,24.86178983]
[1746030382207,0.2390002,1759.5,1759.3,5.68396844]
[1746030382609,0.2390002,1759.5,1759.4,6.46775582]
[1746030382801,3.7923,1759.9,1759.6,5.68310979]
[1746030383002,5.6795641,1760.7,1760.3,5.68065862]
[1746030383235,1.91199242,1760.8,1760.4,5.68052665]
[1746030383236,0.56266867,1760.6,1760.4,5.68052665]
[1746030383407,0.24887513,1760.5,1760.3,4.791]
[1746030383742,0.24887513,1760.5,1760.4,5.68052715]
[1746030384035,0.56266867,1760.5,1760.4,5.68052715]
[1746030384833,0.24887513,1760.5,1760.4,5.68052715]
[1746030385035,0.7923,1760.7,1760.5,5.68020448]
[1746030385327,0.23778429,1760.6,1760.5,5.68020448]
[1746030385693,0.24770115,1760.6,1760.5,5.68004549]
[1746030385936,0.8206,1760.8,1760.6,5.67988185]
[1746030386430,0.24770115,1760.7,1760.6,5.67988185]
[1746030386617,0.56153331,1760.7,1760.6,5.67988185]
[1746030387300,0.56153331,1760.7,1760.6,6.46168185]
[1746030387500,0.24770115,1760.7,1760.6,6.46168185]
[1746030387728,3.7579,1761.0,1760.8,5.67923671]
[1746030387901,0.24442903,1760.9,1760.8,5.67923671]
[1746030388548,0.95864336,1760.9,1760.7,10.47042027]
[1746030388756,0.24442903,1760.8,1760.7,10.47042027]
[1746030389432,0.55841046,1760.8,1760.7,10.47042027]
[1746030389843,0.55841046,1760.8,1760.7,11.28842027]
[1746030390659,0.24442903,1760.8,1760.7,11.28842027]
[1746030390960,0.7854,1761.7,1761.0,0.7831]
[1746030391119,0.24564594,1761.6,1761.3,5.67741942]
[1746030391322,0.31411822,1761.5,1761.3,11.35484867]
[1746030391555,0.24564594,1761.4,1761.2,5.67772449]
[1746030391925,0.24564594,1761.4,1761.3,5.67762448]
[1746030392664,0.24564594,1761.4,1761.3,6.52839848]
[1746030393261,0.7748,1761.9,1761.7,5.67633535]
[1746030393466,6.29262459,1762.2,1761.9,5.67549912]
[1746030393467,0.7853,1762.2,1761.9,5.67549912]
[1746030393760,0.24201157,1762.1,1761.9,5.67546801]
[1746030393930,0.5559028,1762.1,1761.9,5.67546801]
[1746030394134,0.2359239,1762.0,1761.9,5.67546801]
[1746030394346,0.2359239,1762.0,1761.9,5.67569101]
[1746030394849,0.7853,1762.2,1761.9,5.6754789]
[1746030395037,0.23800191,1762.1,1761.9,5.6754789]
[1746030396261,0.23800191,1762.1,1762.0,5.7321235]
[1746030396462,6.48886594,1762.5,1762.2,5.6746862]
[1746030396667,0.89160297,1762.4,1762.2,10.5326862]
[1746030396871,0.24271638,1762.3,1762.2,10.53250686]
[1746030397029,0.24271638,1762.3,1762.2,10.5892475]
[1746030397366,0.24271638,1762.7,1762.6,5.67343696]
[1746030397661,0.24271638,1762.7,1762.5,5.67362514]
[1746030397963,0.24660849,1762.8,1762.2,5.6209]
[1746030398265,3.0,1762.7,1762.4,5.6738833]
[1746030398466,0.24660849,1762.6,1762.4,5.6738833]
[1746030398673,0.24660849,1762.6,1762.5,5.67375886]
[1746030398972,0.24725482,1762.7,1762.6,5.67343696]
[1746030399267,0.24725482,1762.8,1762.6,16.20348348]
[1746030399589,0.24725482,1762.8,1762.6,10.53024174]
[1746030400032,0.24725482,1762.8,1762.7,5.6731151]
[1746030400231,0.24725482,1762.8,1762.6,10.58697247]
[1746030400232,0.24584524,1762.8,1762.6,11.31164174]
[1746030400454,0.24584524,1762.7,1762.6,4.857]
[1746030400864,0.24421822,1762.7,1762.6,4.857]
[1746030401064,0.56864004,1762.7,1762.6,4.857]
[1746030401239,0.24421822,1762.7,1762.6,4.857]
[1746030401640,9.70843332,1762.7,1762.6,4.857]
[1746030401840,3.24421822,1762.7,1762.6,4.857]
[1746030403175,3.24421822,1762.7,1762.6,10.53043696]
[1746030403384,0.24421822,1762.7,1762.6,11.34923696]
[1746030403984,3.0,1763.1,1762.8,5.67268145]
[1746030404148,0.2414576,1763.0,1762.9,5.67245058]
[1746030404342,0.2414576,1763.0,1762.8,5.67257777]
[1746030404573,0.2414576,1763.0,1762.7,7.97296374]
[1746030404777,3.0,1762.9,1762.7,2.3]
[1746030404971,0.24173537,1762.8,1762.7,2.3]
[1746030405161,0.24173537,1762.8,1762.7,5.6731151]
[1746030405482,8.67202862,1763.1,1762.7,5.6731151]
[1746030405483,0.24173537,1763.0,1762.7,5.6731151]
[1746030405982,3.0,1762.9,1762.6,11.349043]
[1746030406184,0.24223901,1762.8,1762.6,4.857]
[1746030407137,0.24223901,1762.8,1762.6,10.53042493]
[1746030408188,0.24223901,1762.8,1762.6,10.53026801]
[1746030408388,0.24223901,1762.8,1762.7,4.855]
[1746030408682,0.24327122,1762.8,1762.7,4.855]
[1746030408889,0.23556507,1762.8,1762.7,4.855]
[1746030409287,1.38750607,1762.8,1762.7,4.855]
[1746030409470,0.7967,1762.8,1762.7,4.855]
[1746030409650,1.03226507,1762.8,1762.7,4.855]
[1746030410583,0.23556507,1762.8,1762.7,4.855]
[1746030410793,0.23531077,1762.8,1762.7,4.855]
[1746030410997,0.23531077,1762.8,1762.7,10.5281151]
[1746030411200,0.23531077,1762.8,1762.7,10.52792912]
[1746030411390,0.23531077,1762.8,1762.7,11.29309566]
[1746030411563,0.23531077,1762.9,1762.7,16.96598839]
[1746030411768,0.24579748,1763.0,1762.7,11.29309273]
[1746030412502,0.24579748,1763.0,1762.9,5.67247149]
[1746030413899,0.24579748,1763.0,1762.8,5.67263177]
[1746030414107,0.24579748,1763.0,1762.7,11.29317342]
[1746030414108,0.24579748,1763.0,1762.7,16.20088472]
[1746030414406,0.24579748,1763.0,1762.8,5.6727557]
[1746030415704,0.24579748,1763.0,1762.7,10.5279113]
[1746030416202,0.24579748,1763.0,1762.7,10.52789779]
[1746030416405,0.24579748,1763.0,1762.7,16.20080451]
[1746030416711,0.24579748,1763.0,1762.8,5.67271583]
[1746030417005,0.24579748,1763.0,1762.8,5.67274632]
[1746030417214,0.24579748,1763.0,1762.7,10.5281018]
[1746030417513,0.24579748,1763.0,1762.7,16.20083082]
[1746030417676,0.24579748,1763.0,1762.7,10.52788934]
[1746030418012,0.24579748,1763.0,1762.8,5.67273172]
[1746030419817,0.24579748,1763.0,1762.7,10.52788934]
[1746030420119,0.24579748,1763.0,1762.7,16.20077805]
[1746030420422,0.24579748,1763.0,1762.8,5.67272434]
[1746030420720,0.24579748,1763.0,1762.8,5.67270599]
[1746030421084,0.24579748,1763.0,1762.8,5.67265093]
[1746030421415,0.24579748,1763.0,1762.9,5.67247149]
[1746030422385,0.24579748,1763.0,1762.8,5.67265093]
[1746030422579,6.67234699,1763.0,1762.7,4.855]
[1746030422809,6.67234699,1763.0,1762.5,5.6735988]
[1746030422810,3.24231114,1762.9,1762.5,5.6735988]
[1746030422998,0.23811994,1762.8,1762.6,4.835]
[1746030423198,0.23811994,1762.8,1762.6,10.50816416]
[1746030423405,3.23811994,1762.8,1762.6,4.835]
[1746030423722,9.83369263,1762.8,1762.6,4.835]
[1746030423925,0.7806,1762.7,1762.6,4.835]
[1746030424225,1.0183942,1762.7,1762.4,5.67388901]
[1746030424397,0.55316872,1762.6,1762.5,4.835]
[1746030424983,0.55316872,1762.6,1762.5,10.50875886]
[1746030425183,0.55316872,1762.6,1762.5,11.52708256]
[1746030425384,0.55316872,1762.6,1762.5,11.32645886]
[1746030425829,0.2377942,1762.6,1762.5,11.32645886]
[1746030426027,6.09,1762.9,1762.7,5.6731151]
[1746030426214,3.0,1762.9,1762.8,5.67279328]
[1746030426391,6.09242435,1763.3,1763.0,5.67197042]
[1746030426392,0.8052,1763.3,1763.0,5.67197042]
[1746030426595,0.8052,1763.3,1763.0,10.50697042]
[1746030426840,0.2389609,1763.2,1763.0,10.50697042]
[1746030427145,0.31665288,1763.1,1763.0,10.50697042]
[1746030427338,0.56330848,1763.1,1763.0,10.50697042]
[1746030427888,0.56330848,1763.1,1763.0,11.52529412]
[1746030428088,0.56330848,1763.1,1763.0,10.50697042]
[1746030436449,0.56330848,1763.1,1763.0,4.835]
[1746030436825,0.56330848,1763.1,1763.0,10.50714974]
[1746030438348,0.56330848,1763.1,1762.9,5.67227805]
[1746030438646,0.243823,1763.0,1762.9,5.67227805]
[1746030439025,0.56047588,1763.0,1762.9,5.67227805]
[1746030440874,0.56047588,1763.0,1762.8,4.835]
[1746030441027,4.04639636,1762.9,1762.8,4.835]
[1746030441225,9.71886785,1762.9,1762.5,11.34723056]
[1746030441547,0.23669636,1762.8,1762.6,10.50734905]
[1746030441947,0.23669636,1762.8,1762.7,6.4613151]
[1746030442125,0.55334924,1762.8,1762.7,6.4613151]
[1746030447445,0.55334924,1762.8,1762.7,5.6731151]
[1746030450683,0.55334924,1762.8,1762.6,10.50734905]
[1746030450887,0.24160475,1762.7,1762.5,10.5086663]
[1746030451095,0.24160475,1762.7,1762.6,5.67343696]
[1746030451262,0.24160475,1762.7,1762.5,10.5086663]
[1746030451449,0.31665288,1762.6,1762.5,10.5086663]
[1746030451655,0.55825763,1762.6,1762.5,10.5086663]
[1746030452244,0.55825763,1762.6,1762.5,4.835]
[1746030452364,3.55825763,1762.6,1762.5,4.835]
[1746030452551,10.96434557,1762.6,1762.5,4.835]
[1746030452755,4.36775763,1762.6,1762.5,4.835]
[1746030454094,1.36775763,1762.6,1762.5,4.835]
[1746030458320,1.36775763,1762.6,1762.5,10.50875886]
[1746030458520,0.55825763,1762.6,1762.5,10.50875886]
[1746030459219,0.55825763,1762.6,1762.5,4.835]
[1746030459748,0.55825763,1762.6,1762.5,10.50875886]
[1746030459924,0.55825763,1762.6,1762.5,11.52708256]
[1746030460128,0.55825763,1762.6,1762.5,10.50875886]
[1746030460292,0.55825763,1762.6,1762.5,4.835]
[1746030464442,0.55825763,1762.6,1762.5,10.50875886]
[1746030464644,0.55825763,1762.6,1762.5,11.31819467]
[1746030464939,0.24160475,1762.6,1762.5,11.26145886]
[1746030465141,6.9126,1763.2,1763.0,5.67193409]
[1746030465309,0.2357642,1763.1,1763.0,5.67193409]
[1746030465513,3.2357642,1763.1,1762.9,10.48039715]
[1746030465713,0.2357642,1763.0,1762.9,10.48039715]
[1746030465930,0.55129507,1763.0,1762.9,10.48039715]
[1746030470836,0.55132972,1763.0,1762.9,10.48039715]
[1746030472355,0.8302,1763.6,1762.9,5.63372039]
[1746030472555,5.66868433,1764.1,1763.4,0.769]
[1746030472556,0.8302,1763.9,1763.4,0.769]
[1746030472741,0.24957736,1763.8,1763.7,5.6698985]
[1746030472950,0.24957736,1763.8,1763.6,5.67007794]
[1746030476464,0.24957736,1763.8,1763.6,5.66999114]
[1746030476760,0.24957736,1763.8,1763.7,5.6698985]
[1746030476952,0.24957736,1763.8,1763.6,5.67004891]
[1746030477153,0.24957736,1763.8,1763.6,11.34007449]
[1746030477353,0.24957736,1763.8,1763.7,5.6698985]
[1746030478235,0.24957736,1763.8,1763.7,6.4326985]
[1746030478746,3.0,1764.1,1763.8,5.66933734]
[1746030478961,0.24911767,1764.0,1763.8,5.66933734]
[1746030479366,0.24911767,1764.0,1763.9,11.25615562]
[1746030479541,0.7938,1764.5,1764.3,5.66795281]
[1746030479746,6.09,1764.6,1764.3,10.47383641]
[1746030479747,0.24158805,1764.4,1764.3,10.47383641]
[1746030479934,0.24158805,1764.5,1764.3,10.47383641]
[1746030480139,0.24158805,1764.5,1764.4,5.66764905]
[1746030480463,0.24158805,1764.6,1764.3,10.47383084]
[1746030480655,9.29459531,1764.6,1764.3,4.806]
[1746030480855,0.24784236,1764.5,1764.3,4.806]
[1746030481868,5.91517921,1764.5,1764.3,4.806]
[1746030482064,6.49304235,1764.3,1764.1,4.805]
[1746030482241,3.24673008,1764.2,1764.1,4.805]
[1746030482674,0.24673008,1764.2,1764.1,10.47361289]
[1746030482966,0.24673008,1764.2,1764.1,13.63919126]
[1746030483166,0.24673008,1764.2,1764.1,13.58251289]
[1746030483576,6.09,1764.4,1764.2,11.33638225]
[1746030483741,6.09,1764.4,1764.2,5.66809068]
[1746030484072,0.24718054,1764.3,1764.2,5.66809068]
[1746030484838,0.24718054,1764.3,1764.2,6.47699068]
[1746030485043,0.24718054,1764.3,1764.2,6.53365528]
[1746030485253,0.24718054,1764.3,1764.2,8.83365528]
[1746030485440,5.66648013,1764.8,1764.5,5.66716073]
[1746030485642,5.66648013,1764.8,1764.5,10.47516073]
[1746030485643,0.25106769,1764.7,1764.5,10.47516073]
[1746030486272,0.25106769,1764.7,1764.5,4.808]
[1746030486639,0.25106769,1764.7,1764.5,10.4752899]
[1746030487082,0.25106769,1764.7,1764.5,4.808]
[1746030487243,6.67945689,1764.7,1764.5,4.808]
[1746030487444,0.23652744,1764.6,1764.5,4.808]
[1746030487645,0.23652744,1764.6,1764.4,4.807]
[1746030487646,8.6674992,1764.5,1764.4,4.807]
[1746030487881,11.13143858,1764.5,1764.4,4.807]
[1746030488383,9.67432167,1764.5,1764.4,4.807]
[1746030488964,0.24522247,1764.5,1764.4,4.807]
[1746030489171,0.767,1764.7,1764.4,18.49859632]
[1746030489350,0.24769565,1764.6,1764.4,18.44192731]
[1746030489555,0.24769565,1764.6,1764.4,12.77442163]
[1746030489800,0.24769565,1764.6,1764.4,7.107]
[1746030490082,3.24769565,1764.6,1764.4,7.107]